{"text_format":"1","workbook":"xlsx","n_sheets":3,"sheets":["Лист1","Лист2","Лист3"],"not_rendered":{"charts":0,"images":0,"macros":0,"external_links":0,"defined_names":2,"comments":0,"pivot_tables":0},"unopened":[],"bounds":{"document_bytes":16777216,"sheet_cells":100000,"rows_first":2000,"rows_last":500,"rows_between":2000,"halvings":0,"cell_chars":16384,"cell_head_chars":4096},"cells_cut":0,"cells_raw":0,"read":"whole","date_system":"1900"}

{"sheet":"Лист1","index":0,"n_rows":0,"n_cols":0,"rows_kept":0,"cut":false,"hidden":false,"merged":[]}

{"sheet":"Лист2","index":1,"n_rows":0,"n_cols":0,"rows_kept":0,"cut":false,"hidden":false,"merged":[]}

{"sheet":"Лист3","index":2,"n_rows":182,"n_cols":5,"rows_kept":182,"cut":false,"hidden":false,"merged":[[9,0,9,4],[10,0,10,4],[11,0,11,4],[12,0,12,4],[16,2,18,2],[16,3,18,3],[13,0,13,4],[16,4,18,4],[16,0,18,0],[16,1,18,1]]}
[null,null,null,null,"Приложение 4"]
[]
[null,null,null,null,"к решению совета депутатов"]
[null,null,null,null,"муниципального образования"]
[null,null,null,null,"Старопольское сельское поселение"]
[null,null,null,null,"Сланцевского муниципального района"]
[null,null,null,null,"Ленинградской области"]
[null,null,null,null,"   от 02.08.2013 № 243   "]
[]
["РАСПРЕДЕЛЕНИЕ"]
["расходов местного бюджета по разделам, подразделам, целевым статьям расходов,"]
["видам расходов функциональной классификации расходов Российской Федерации"]
["СТАРОПОЛЬСКОЕ СЕЛЬСКОЕ ПОСЕЛЕНИЕ СЛАНЦЕВСКОГО МУНИЦИПАЛЬНОГО РАЙОНА"]
["Ленинградской области на 2013 год"]
[]
["тыс. руб."]
["Наименование","КФСР","КЦСР","КВР","Бюджетные ассигнования на год"]
[]
[]
["Общегосударственные вопросы","0100",null,null,{"$f":"E21+E27+E34+E37+E41+E44+E47","v":4317.2}]
["Функционирование законодательных (представительных) органов государственной власти и представительных органов муниципальных образований","0103",null,null,216.2]
["Местная администрация и ее структурные подразделения","0103","0020400",null,{"$f":"E23","v":200.1}]
["Выполнение функций органами местного самоуправления","0103","0020400","500",200.1]
["Межбюджетные трансферты бюджетам муниципальных районов из бюджетов поселений и межбюджетные трансферты бюджетам поселений из бюджетов муниципальных районов на осуществление части полномочий по решению вопросов местного значения в соответствии с заключенными соглашениями","0103","5210600",null,{"$f":"E25","v":16.100000000000001}]
["Межбюджетные трансферты бюджетам муниципальных районов из бюджетов поселений на осуществление части полномочий  по решению вопросов местного значения в части контрольно-счетного органа поселения","0103","5210602",null,{"$f":"E26","v":16.100000000000001}]
["Иные межбюджетные трансферты ","0103","5210602","017",16.100000000000001]
["Функционирование Правительства Российской Федерации, высших исполнительных органов государственной власти субъектов Российской Федерации, местных администраций ","0104",null,null,{"$f":"E28+E30+E32","v":4051}]
["Местная администрация и ее структурные подразделения","0104","0020400",null,{"$f":"E29","v":3975.8}]
["Выполнение функций органами местного самоуправления","0104","0020400","500",3975.8]
["Глава местной администрации (исполнительно-распорядительного органа муниципального образования)","0104","0020800",null,{"$f":"E31","v":65.2}]
["Выполнение функций органами местного самоуправления","0104","0020800","500",65.2]
["Осуществление отдельного государственного полномочия Ленинградсской области в сфере административных правоотношений","0104","5210223",null,10]
["Выполнение функций органами местного самоуправления","0104","5210223","500",10]
["Осуществление деятельности финансовых, налоговых и таможенных органов и органов финансового (финансово-бюджетного) надзора","0106",null,null,{"$f":"E35","v":0}]
["Межбюджетные трансферты бюджетам муниципальных районов из бюджетов поселений и межбюджетные трансферты бюджетам поселений из бюджетов муниципальных районов на осуществление части полномочий по решению вопросов местного значения в соответствии с заключенными соглашениями","0106","5210600",null,{"$f":"E36","v":0}]
["Иные межбюджетные трансферты","0106","5210600","017"]
["Обеспечение проведения выборов и референдумов","0107",null,null,{"$f":"E38","v":0}]
["Проведение выборов и референдумов","0107","0200000",null,{"$f":"E39","v":0}]
["Проведение выборов в представительные органы муниципального образования","0107","0200002",null,{"$f":"E40","v":0}]
["Выполнение функций органами местного самоуправления","0107","0200002","500"]
["Резервные фонды ","0111",null,null,{"$f":"E42","v":10}]
["Резервные фонды местных администраций по ликвидации чрезвичайных ситуаций","0111","0700502",null,{"$f":"E43","v":10}]
["Прочие расходы","0111","0700502","013",10]
["Другие общегосударственные вопросы","0113",null,null,{"$f":"E45+E49+E47","v":40}]
["Выполнение других обязательств муниципальных образований","0113","0920300",null,{"$f":"E46","v":40}]
["Выполнение функций органами местного самоуправления","0113","0920300","500",40]
["Обеспечение мероприятий по реформированию государственной и муниципальной службы","0113","0928400",null,{"$f":"E48","v":0}]
["Выполнение функций органами местного самоуправления","0113","0928400","500"]
["Целевые программы муниципальных образований","0113","7950000",null,{"$f":"E50","v":0}]
["Выполнение функций органами местного самоуправления","0113","7950000","500"]
["Национальная оборона","0200",null,null,{"$f":"E52","v":200}]
["Мобилизационная  и вневойсковая подготовка","0203",null,null,{"$f":"E53","v":200}]
["Руководство и управление в сфере установленных функций","0203","0010000",null,{"$f":"E54","v":200}]
["Осуществление первичного воинского учета на территориях, где отсутствуют военные комиссариаты","0203","0013600",null,{"$f":"E55","v":200}]
["Выполнение функций органами местного самоуправления","0203","0013600","500",200]
["Национальная безопасность и правоохранительная деятельность","0300",null,null,{"$f":"E57+E60","v":676}]
["Органы внутренних дел","0302",null,null,{"$f":"E58","v":0}]
["Пособия и компенсации военнослужащим, приравненным к ним лицам, а также уволенным из их числа","0302","2027600",null,{"$f":"E59","v":0}]
["Социальные выплаты","0302","2027600","005"]
["Защита населения и территории от чрезвычайных ситуаций природного и техногенного характера, гражданская оборона","0309",null,null,{"$f":"E61+E63+E66","v":676}]
["Предупреждение и ликвидация последствий чрезвычайных ситуаций и стихийных бедствий природного и техногенного характера","0309","2180100",null,{"$f":"E62","v":646}]
["Выполнение функций органами местного самоуправления","0309","2180100","500",646]
["Подготовка населения и организаций к действиям в чрезвычайной ситуации в мирное и военное время","0309","2190100",null,{"$f":"E64","v":0}]
["Функционирование органов в сфере национальной безопасности, правоохранительной деятельности и обороны","0309","2190100","500"]
["Целевые программы муниципальных образований","0309",7950000,null,{"$f":"E66","v":30}]
["Муниципальная целевая программа \"Обеспечение первичных мер пожарной безопасности на территории муниципального образования Старопольское сельское поселение на 2011-2015 гг\"","0309",7951406,null,{"$f":"E67","v":30}]
["Выполнение функций органами местного самоуправления","0309",7951406,"500",30]
["Национальная экономика","0400",null,null,{"$f":"E72+E75+E69","v":1670}]
["Общеэкономические вопросы","0401",null,null,{"$f":"E70","v":0}]
["Осуществление полномочий Российской Федерации в области содействия занятости населения, включая расходы по осуществлению этих полномочий ","0401",5100200,null,{"$f":"E71","v":0}]
["Выполнение функций органами местного самоуправления","0401",5100200,"500",0]
["Дорожное хозяйство (дорожные фонды)","0409",null,null,{"$f":"E73","v":1430}]
["Ремонт и содержание автомобильных дорог местного значения","0409",3150110,null,{"$f":"E74","v":1430}]
["Выполнение функций органами местного самоуправления","0409",3150110,"500",1430]
["Другие вопросы в области национальной экономики","0412",null,null,{"$f":"E78+E76","v":240}]
["Мероприятия в области строительства,архитектуры и градостроительства","0412",3380000,null,{"$f":"E77","v":0}]
["Выполнение функций органами местного самоуправления","0412",3380000,"500",0]
["Мероприятия по землеустройству и землепользованию","0412",3400300,null,{"$f":"E79","v":240}]
["Выполнение функций органами местного самоуправления","0412",3400300,"500",240]
["Жилищно-коммунальное хозяйство","0500",null,null,{"$f":"E81+E103+E121","v":1945.3}]
["Жилищное хозяйство","0501",null,null,{"$f":"E82+E89+E91+E100","v":234}]
["Обеспечение мероприятий по капитальному ремонту многоквартирных домов и переселению граждан из аварийного жилищного фонда ","0501","0980000",null,{"$f":"E83+E86","v":0}]
["Обеспечение мероприятий по капитальному ремонту многоквартирных домов и переселению граждан из аварийного жилищного фонда за счет средств, поступивших от государственной корпорации Фонд содействия реформированию жилищно-коммунального хозяйства ","0501","0980100",null,{"$f":"E84","v":0}]
["Обеспечение мероприятий по капитальному ремонту многоквартирных домов за счет средств, поступивших от государственной корпорации Фонд содействия реформированию жилищно-коммунального хозяйства ","0501","0980101",null,{"$f":"E85","v":0}]
["Субсидии юридическим лицам","0501","0980101","006"]
["Обеспечение мероприятий по капитальному ремонту многоквартирных домов и переселению граждан из аварийного жилищного фонда за счет средств бюджетов","0501","0980200",null,{"$f":"E87","v":0}]
["Обеспечение мероприятий по капитальному ремонту многоквартирных домов за счет средств бюджетов ","0501","0980201",null,{"$f":"E88","v":0}]
["Субсидии юридическим лицам","0501","0980201","006",0]
["Переселение граждан из жилищного фонда, признанного непригодным для проживания, и (или) жилищного фонда с высоким уровнем износа (более 70 процентов)","0501",1040400,null,{"$f":"E90","v":0}]
["Бюджетные инвестиции","0501",1040400,"003"]
["Поддержка жилищного хозяйства","0501","3500000",null,{"$f":"E92+E94","v":234}]
["Капитальный ремонт государственного жилищного фонда субъектов Российской Федерации  и муниципального жилищного фонда","0501","3500200",null,{"$f":"E93","v":0}]
["Выполнение функций органами местного самоуправления","0501","3500200","500",0]
["Мероприятия в области жилищного хозяйства ","0501","3500300",null,{"$f":"E95+E99+E97","v":234}]
["Субсидии юридическим лицам","0501","3500300","006",0]
["Прочие мероприятия в области жилищного хозяйства","0501","3500301",null,{"$f":"E97","v":234}]
["Выполнение функций органами местного самоуправления","0501","3500301","500",234]
[]
[]
["Целевые программы муниципальных образований","0501",7950000,null,{"$f":"E101+E102","v":0}]
["Бюджетные инвестиции","0501","7950000","003"]
["Выполнение функций органами местного самоуправления","0501","7950000","500"]
["Коммунальное хозяйство","0502",null,null,{"$f":"E104+E107+E116+E119","v":390.5}]
["Бюджетные инвестиции в объекты капитального строительства собственности муниципальных образований ","0502",1020102,null,{"$f":"E105+E106","v":0}]
["Бюджетные инвестиции","0502",1020102,"003"]
["Выполнение функций органами местного самоуправления","0502",1020102,"500"]
["Поддержка коммунального хозяйства ","0502","3510000",null,{"$f":"E108+E110+E112","v":390.5}]
["Компенсация выпадающих доходов организациям, предоставляющим населению услуги теплоснабжения по тарифам, не обеспечивающим возмещение издержек","0502","3510200",null,{"$f":"E109","v":0}]
["Субсидии юридическим лицам","0502","3510200","006",{"$f":"4200-4200","v":0}]
["Компенсация выпадающих доходов организациям, предоставляющим населению услуги водоснабжения и водоотведения по тарифам, не обеспечивающим возмещение издержек","0502","3510300",null,{"$f":"E111","v":0}]
["Субсидии юридическим лицам","0502","3510300","006"]
["Мероприятия в области коммунального хозяйства","0502","3510500",null,{"$f":"E115+E113","v":390.5}]
["Субсидии юридическим лицам","0502","3510500","006",0]
["Прочие мероприятия в области коммунального хозяйства","0502","3510505",null,{"$f":"E115","v":390.5}]
["Выполнение функций органами местного самоуправления","0502","3510505","500",390.5]
["Региональные целевые программы","0502",5220000,null,{"$f":"E117","v":0}]
["Региональная целевая программа \"Предупредждение ситуаций, связанных с нарушением функционирования  объектов жилищно-коммунального хозяйства Ленинградской области, в в 2008-2011 годах\"","0502",5226800,null,{"$f":"E118","v":0}]
["Бюджетные инвестиции","0502",5226800,"003",{"$f":"93.7-93.7","v":0}]
["Целевые программы муниципальных образований","0502",7950000,null,{"$f":"E120","v":0}]
["Бюджетные инвестиции","0502",7950000,"003"]
["Благоустройство","0503",null,null,{"$f":"E122+E124+E126+E128+E130+E132","v":1320.8}]
["Уличное освещение","0503","6000100",null,{"$f":"E123","v":520}]
["Выполнение функций органами местного самоуправления","0503","6000100","500",520]
["Строительство и содержание автомобильных дорог и инженерных сооружений на них в границах городских округов и поселений в рамках благоустройства","0503","6000200",null,{"$f":"E125","v":0}]
["Выполнение функций органами местного самоуправления","0503","6000200","500",0]
["Озеленение","0503","6000300",null,{"$f":"E127","v":70}]
["Выполнение функций органами местного самоуправления","0503","6000300","500",70]
["Организация и содержание мест захоронения","0503","6000400",null,{"$f":"E129","v":73}]
["Выполнение функций органами местного самоуправления","0503","6000400","500",73]
["Прочие мероприятия по благоустройству городских округов и поселений","0503","6000500",null,{"$f":"E131","v":657.8}]
["Выполнение функций органами местного самоуправления","0503","6000500","500",657.8]
["Целевые программы муниципальных образований","0503",7950000,null,{"$f":"E133+E134","v":0}]
["Бюджетные инвестиции","0503",7950000,"003"]
["Выполнение функций органами местного самоуправления","0503",7950000,"500"]
["Образование","0700",null,null,{"$f":"E136","v":31.3}]
["Молодежная политика и оздоровление детей","0707",null,null,{"$f":"E137+E140","v":31.3}]
["Проведение мероприятий для детей и молодежи","0707","4310100",null,{"$f":"E138","v":31.3}]
["Организация занятости детей и молодежи","0707","4310102",null,{"$f":"E139","v":31.3}]
["Выполнение функций органами местного самоуправления","0707","4310102","500",31.3]
["Целевые программы муниципальных образований","0707","7950000",null,{"$f":"E141","v":0}]
["Проведение мероприятий для детей и молодежи","0707","7950000","447"]
["Культура и кинематография ","0800",null,null,{"$f":"E143","v":16928}]
["Культура ","0801",null,null,{"$f":"E144+E147+E150","v":16928}]
["Дворцы и дома культуры, другие учреждения культуры и средств массовой информации","0801","4400000",null,{"$f":"E145","v":7000.8}]
["Обеспечение деятельности подведомственных учреждений","0801","4409900",null,{"$f":"E146","v":7000.8}]
["Выполнение функций казенными учреждениями","0801","4409900","001",7000.8]
["Региональные целевые программы","0801","5220000",null,{"$f":"E148","v":9000}]
["Капитальный ремонт сельских учреждений культуры в рамках реализации региональной целевой программы \"Социальное развитие села на 2009-2013 годы\"","0801","5220400",null,{"$f":"E149","v":9000}]
["Выполнение функций казенными учреждениями","0801","5224104","001",9000]
["Библиотеки","0801","4420000",null,{"$f":"E151","v":927.2}]
["Обеспечение деятельности подведомственных учреждений","0801","4429900",null,{"$f":"E152","v":927.2}]
["Выполнение функций казенными учреждениями","0801","4429900","001",927.2]
["Мероприятия в сфере культуры, кинематографии и средств массовой информации ","0801","4500000",null,{"$f":"E154","v":0}]
["Комплектование книжных фондов библиотек муниципальных образований","0801","4500600",null,{"$f":"E155","v":0}]
["Выполнение функций бюджетными учреждениями","0801","4500600","001"]
["Региональные целевые программы","0801","5220000",null,{"$f":"E157+E158","v":0}]
["Мероприятия в сфере культуры","0801","5220000","023",{"$f":"65+6-71","v":0}]
["Капитальный ремонт сельских учреждений культуры в рамках реализации региональной целевой программы \"Социальное развитие села до 2010 года\"","0801","5224104",null,{"$f":"E159","v":0}]
["Мероприятия в сфере культуры","0801","5224104","024",{"$f":"30.6-30.6","v":0}]
["Целевые программы муниципальных образований","0801","7950000",null,{"$f":"E162","v":0}]
["Муниципальная целевая программа \"Обеспечение первичных мер пожарной безопасности на территории муниципального образования Старопольское сельское поселение на 2011-2015 гг\"","0801","7951406",null,{"$f":"E162","v":0}]
["Мероприятия в сфере культуры","0801","7950000","024",0]
["Социальная политика","1000",null,null,{"$f":"E164+E167","v":118.3}]
["Пенсионное обеспечение","1001",null,null,{"$f":"E165","v":118.3}]
["Доплаты к пенсиям муниципальных служащих","1001",4910100,null,{"$f":"E166","v":118.3}]
["Социальные выплаты","1001",4910100,"005",118.3]
["Социальное обеспечение населения","1003",null,null,{"$f":"E170+E168","v":0}]
["Подпрограмма «Обеспечение жильем молодых семей»","1003",1040200,null,{"$f":"E169","v":0}]
["Субсидии на обеспечение жильем","1003",1040200,"501"]
["Мероприятия в области социальной политики","1003",5053300,null,{"$f":"E171","v":0}]
["Социальные выплаты","1003",5053300,"005",0]
["Физическая культура и спорт","1100",null,null,{"$f":"E173","v":0}]
["Массовый спорт","1102",null,null,{"$f":"E174+E176","v":0}]
["Мероприятия в области здравоохранения, спорта и физической культуры, туризма ","1102","5129700",null,{"$f":"E175","v":0}]
["Выполнение функций органами местного самоуправления","1102","5129700","500"]
["Целевые программы муниципальных образований","1102",7950000,null,{"$f":"E177","v":0}]
["Мероприятия в области здравоохранения, спорта и физической культуры","1102",7950000,"079"]
["Обслуживание государственного и муниципального долга","1300",null,null,{"$f":"E179","v":0.7}]
["Обслуживание внутреннего государственного и муниципального долга","1301",null,null,{"$f":"E180","v":0.7}]
["Процентные платежи по муниципальному долгу","1301","0650300",null,{"$f":"E181","v":0.7}]
["Прочие расходы","1301","0650300","013",0.7]
["ИТОГО ",null,null,null,{"$f":"E51+E56+E68+E135+E142+E163+E172+E178+E80+E20","v":25886.799999999999}]